fUST/lending_fUST_20250204
["ID","MTS","AMOUNT","RATE_DAILY","PERIOD"]
[351540448,1738618248982,-396.98469269,0.00016712,2]
[351540449,1738618248992,-500.0,0.00016712,2]
[351540450,1738618249001,-500.0,0.00016712,2]
[351540451,1738618249011,-500.0,0.00016712,2]
[351540452,1738618249021,-575.1166956,0.00016712,2]
[351540453,1738618249031,-500.0,0.00016712,2]
[351540454,1738618249041,-500.0,0.00016712,2]
[351540455,1738618249050,-629.78,0.00016712,2]
[351540456,1738618249060,-500.0,0.00016712,2]
[351540457,1738618249070,-500.0,0.00016712,2]
[351540458,1738618249080,-500.0,0.00016712,2]
[351540459,1738618249089,-500.0,0.00016712,2]
[351540460,1738618249099,-5746.53,0.00016712,2]
[351540461,1738618249109,-853.59,0.00016712,2]
[351540462,1738618249118,-500.0,0.00016712,2]
[351540463,1738618249128,-500.0,0.00016712,2]
[351540464,1738618249137,-500.0,0.00016712,2]
[351540465,1738618249148,-752.62,0.00016712,2]
[351540466,1738618249158,-290.35702549,0.00016712,2]
[351540467,1738618249167,-609.53,0.00016712,2]
[351540468,1738618249177,-1242.33,0.00016712,2]
[351540469,1738618249187,-474.28,0.00016712,2]
[351540470,1738618249197,-500.0,0.00016712,2]
[351540471,1738618249207,-3233.63,0.00016712,2]
[351540472,1738618249217,-770.39,0.00016712,2]
[351540473,1738618249226,-781.57,0.00016712,2]
[351540474,1738618249236,-500.0,0.00016712,2]
[351540475,1738618249246,-500.0,0.00016712,2]
[351540476,1738618249255,-500.0,0.00016712,2]
[351540477,1738618249265,-500.0,0.00016712,2]
[351540478,1738618249274,-500.0,0.00016712,2]
[351540479,1738618249284,-500.0,0.00016712,2]
[351540480,1738618249294,-500.0,0.00016712,2]
[351540481,1738618249304,-500.0,0.00016712,2]
[351540482,1738618249314,-500.0,0.00016712,2]
[351540483,1738618249324,-500.0,0.00016712,2]
[351540484,1738618249334,-500.0,0.00016712,2]
[351540485,1738618249345,-500.0,0.00016712,2]
[351540486,1738618249355,-500.0,0.00016712,2]
[351540488,1738618249364,-641.32,0.00016712,2]
[351540489,1738618249374,-1543.09,0.00016712,2]
[351540490,1738618249384,-500.0,0.00016712,2]
[351540491,1738618249394,-500.0,0.00016712,2]
[351540492,1738618249404,-500.0,0.00016712,2]
[351540493,1738618249414,-1356.85,0.00016712,2]
[351540494,1738618249424,-500.0,0.00016712,2]
[351540495,1738618249434,-635.38989173,0.00016712,2]
[351540496,1738618249444,-500.0,0.00016712,2]
[351540497,1738618249456,-2165.76,0.00016712,2]
[351540498,1738618249467,-500.0,0.00016712,2]
[351540499,1738618249476,-500.0,0.00016712,2]
[351540500,1738618249486,-916.05,0.00016712,2]
[351540501,1738618249496,-500.0,0.00016712,2]
[351540502,1738618249507,-500.0,0.00016712,2]
[351540503,1738618249516,-186.55076288,0.00016712,2]
[351540504,1738618249526,-509.56,0.00016712,2]
[351540505,1738618249536,-500.0,0.00016712,2]
[351540506,1738618249548,-555.36,0.00016712,2]
[351540507,1738618249558,-500.0,0.00016712,2]
[351540508,1738618249568,-1275.64,0.00016712,2]
[351540509,1738618249578,-500.0,0.00016712,2]
[351540510,1738618249588,-500.0,0.00016712,2]
[351540511,1738618249598,-500.0,0.00016712,2]
[351540512,1738618249609,-500.0,0.00016712,2]
[351540513,1738618249619,-3488.56,0.00016712,2]
[351540514,1738618249629,-500.0,0.00016712,2]
[351540515,1738618249638,-2070.94,0.00016712,2]
[351540516,1738618249648,-500.0,0.00016712,2]
[351540517,1738618249658,-500.0,0.00016712,2]
[351540518,1738618249670,-500.0,0.00016712,2]
[351540519,1738618249680,-500.0,0.00016712,2]
[351540520,1738618249691,-500.0,0.00016712,2]
[351540521,1738618249700,-500.0,0.00016712,2]
[351540522,1738618249711,-500.0,0.00016712,2]
[351540523,1738618249721,-500.0,0.00016712,2]
[351540524,1738618249731,-500.0,0.00016712,2]
[351540525,1738618249741,-751.44,0.00016712,2]
[351540526,1738618249751,-500.0,0.00016712,2]
[351540527,1738618249761,-500.0,0.00016712,2]
[351540528,1738618249771,-782.12,0.00016712,2]
[351540529,1738618249785,-534.26,0.00016712,2]
[351540530,1738618249795,-1255.36,0.00016712,2]
[351540531,1738618249805,-500.0,0.00016712,2]
[351540532,1738618249815,-500.0,0.00016712,2]
[351540533,1738618249825,-1324.19,0.00016712,2]
[351540534,1738618249835,-694.39,0.00016712,2]
[351540535,1738618249845,-5855.21,0.00016712,2]
[351540536,1738618249855,-500.0,0.00016712,2]
[351540537,1738618249865,-737.36,0.00016712,2]
[351540538,1738618249874,-521.86,0.00016712,2]
[351540539,1738618249884,-568.48766951,0.00016712,2]
[351540540,1738618249894,-500.0,0.00016712,2]
[351540541,1738618249904,-500.0,0.00016712,2]
[351540542,1738618249914,-500.0,0.00016712,2]
[351540543,1738618249923,-724.96,0.00016712,2]
[351540544,1738618249932,-500.0,0.00016712,2]
[351540545,1738618249942,-500.0,0.00016712,2]
[351540546,1738618249953,-500.0,0.00016712,2]
[351540547,1738618249963,-14669.9,0.00016712,2]
[351540548,1738618249974,-500.0,0.00016712,2]
[351540549,1738618249983,-500.0,0.00016712,2]
[351540550,1738618249993,-500.0,0.00016712,2]
[351540551,1738618250002,-500.0,0.00016712,2]
[351540552,1738618250012,-500.0,0.00016712,2]
[351540553,1738618250021,-500.0,0.00016712,2]
[351540554,1738618250031,-500.0,0.00016712,2]
[351540555,1738618250040,-500.0,0.00016773,2]
[351540556,1738618250051,-500.0,0.00016773,2]
[351540557,1738618250060,-500.0,0.00016773,2]
[351540558,1738618250070,-333.25490104,0.00016777,2]
[351540559,1738618250080,-154.0,0.00016788,2]
[351540560,1738618250089,-154.0,0.00016788,2]
[351540561,1738618250099,-154.0,0.00016788,2]
[351540562,1738618250109,-154.0,0.00016788,2]
[351540563,1738618250119,-154.0,0.00016788,2]
[351540564,1738618250128,-154.0,0.00016788,2]
[351540565,1738618250138,-154.0,0.00016788,2]
[351540566,1738618250148,-154.0,0.00016788,2]
[351540567,1738618250158,-154.0,0.00016788,2]
[351540568,1738618250167,-154.0,0.00016788,2]
[351540569,1738618250177,-154.0,0.00016788,2]
[351540570,1738618250187,-154.0,0.00016788,2]
[351540571,1738618250196,-154.0,0.00016788,2]
[351540572,1738618250207,-162.0,0.00016788,2]
[351540573,1738618250216,-155.0,0.00016788,2]
[351540574,1738618250226,-155.0,0.00016788,2]
[351540575,1738618250235,-155.0,0.00016788,2]
[351540576,1738618250245,-155.0,0.00016788,2]
[351540577,1738618250254,-155.0,0.00016788,2]
[351540578,1738618250264,-159.13,0.00016788,2]
[351540579,1738618250273,-354.5475049,0.00016795,2]
[351540580,1738618250282,-354.5475049,0.00016795,2]
[351540581,1738618250292,-354.5475049,0.00016795,2]
[351540582,1738618250302,-354.5475049,0.00016795,2]
[351540583,1738618250311,-354.5475049,0.00016795,2]
[351540584,1738618250321,-709.0950098,0.00016795,2]
[351540585,1738618250330,-354.4946044,0.00016795,2]
[351540586,1738618250340,-153.51507434,0.00016795,2]
[351540587,1738618250349,-153.51507434,0.00016795,2]
[351540588,1738618250359,-17261.28,0.000168,2]
[351540589,1738618250369,-215.6590378,0.000168,2]
[351540590,1738618250378,-308.8464614,0.000168,2]
[351540591,1738618250388,-255.06788783,0.00016848,2]
[351540592,1738618250398,-500.0,0.00016848,2]
[351540593,1738618250408,-349.56848182,0.00016848,2]
[351540594,1738618250420,-500.0,0.00016848,2]
[351540595,1738618250429,-500.0,0.00016848,2]
[351540596,1738618250439,-500.0,0.00016848,2]
[351540597,1738618250451,-500.0,0.00016848,2]
[351540598,1738618250463,-500.0,0.00016848,2]
[351540599,1738618250472,-151.0,0.00016849,2]
[351540600,1738618250482,-151.0,0.00016849,2]
[351540601,1738618250492,-151.0,0.00016849,2]
[351540602,1738618250502,-151.0,0.00016849,2]
[351540603,1738618250512,-151.0,0.00016849,2]
[351540604,1738618250522,-432.404117,0.00016849,2]
[351540605,1738618250532,-432.404117,0.00016849,2]
[351540606,1738618250542,-177.53701,0.00016849,2]
[351540607,1738618250551,-177.53701,0.00016849,2]
[351540608,1738618250561,-401.08707558,0.00016849,2]
[351540609,1738618250571,-151.0,0.00016849,2]
[351540610,1738618250580,-500.0,0.00016849,2]
[351540611,1738618250590,-232.529977,0.00016849,2]
[351540612,1738618250600,-232.529977,0.00016849,2]
[351540613,1738618250610,-500.0,0.00016849,2]
[351540614,1738618250620,-500.0,0.00016849,2]
[351540615,1738618250629,-500.0,0.00016849,2]
[351540616,1738618250639,-522.48256559,0.00016849,2]
[351540617,1738618250649,-310.20854354,0.00016849,2]
[351540618,1738618250658,-500.0,0.00016849,2]
[351540619,1738618250668,-500.0,0.00016849,2]
[351540620,1738618250678,-500.0,0.00016849,2]
[351540621,1738618250687,-500.0,0.00016849,2]
[351540622,1738618250699,-500.0,0.00016849,2]
[351540623,1738618250709,-500.0,0.00016849,2]
[351540624,1738618250719,-500.0,0.00016849,2]
[351540625,1738618250730,-500.0,0.00016849,2]
[351540626,1738618250741,-500.0,0.00016849,2]
[351540627,1738618250751,-500.0,0.00016849,2]
[351540628,1738618250760,-500.0,0.00016849,2]
[351540629,1738618250772,-500.0,0.00016849,2]
[351540630,1738618250781,-500.0,0.00016849,2]
[351540631,1738618250791,-500.0,0.00016849,2]
[351540632,1738618250800,-500.0,0.00016849,2]
[351540633,1738618250810,-500.0,0.00016849,2]
[351540634,1738618250821,-500.0,0.00016849,2]
[351540635,1738618250832,-500.0,0.00016849,2]
[351540636,1738618250843,-500.0,0.00016849,2]
[351540637,1738618250854,-500.0,0.00016849,2]
[351540638,1738618250863,-500.0,0.00016849,2]
[351540639,1738618250872,-500.0,0.00016849,2]
[351540640,1738618250882,-500.0,0.00016849,2]
[351540641,1738618250891,-500.0,0.00016849,2]
[351540642,1738618250900,-385.56,0.00016849,2]
[351540643,1738618250910,-500.0,0.00016849,2]
[351540644,1738618250919,-500.0,0.00016849,2]
[351540645,1738618250928,-500.0,0.00016849,2]
[351540646,1738618250939,-500.0,0.00016849,2]
[351540647,1738618250948,-500.0,0.00016849,2]
[351540648,1738618250959,-500.0,0.00016849,2]
[351540649,1738618250968,-1000.49,0.00016849,2]
[351540650,1738618250977,-500.0,0.00016849,2]
[351540651,1738618250987,-500.0,0.00016849,2]
[351540652,1738618250997,-500.0,0.00016849,2]
[351540653,1738618251006,-500.0,0.00016849,2]
[351540654,1738618251016,-651.22,0.00016849,2]
[351540655,1738618251026,-500.0,0.00016849,2]
[351540656,1738618251036,-342.0515566,0.00016849,2]
[351540657,1738618251045,-629.78,0.00016849,2]
[351540658,1738618251055,-500.0,0.00016849,2]
[351540659,1738618251064,-500.0,0.00016849,2]
[351540660,1738618251074,-500.0,0.00016849,2]
[351540661,1738618251084,-500.0,0.00016849,2]
[351540662,1738618251094,-5746.53,0.00016849,2]
[351540663,1738618251104,-853.59,0.00016849,2]
[351540664,1738618251114,-500.0,0.00016849,2]
[351540666,1738618251124,-500.0,0.00016849,2]
[351540667,1738618251134,-500.0,0.00016849,2]
[351540668,1738618251144,-752.62,0.00016849,2]
[351540670,1738618251155,-609.53,0.00016849,2]
[351540671,1738618251165,-1242.33,0.00016849,2]
[351540672,1738618251266,-352.50237568,0.00016849,2]
[351540673,1738618251288,-3233.63,0.00016849,2]
[351540674,1738618251298,-770.39,0.00016849,2]
[351540675,1738618251307,-781.57,0.00016849,2]
[351540676,1738618251316,-500.0,0.00016849,2]
[351540677,1738618251326,-500.0,0.00016849,2]
[351540678,1738618251335,-500.0,0.00016849,2]
[351540679,1738618251344,-500.0,0.00016849,2]
[351540680,1738618251354,-500.0,0.00016849,2]
[351540681,1738618251363,-500.0,0.00016849,2]
[351540682,1738618251372,-500.0,0.00016849,2]
[351540683,1738618251382,-500.0,0.00016849,2]
[351540684,1738618251391,-641.32,0.00016849,2]
[351540685,1738618251407,-1543.09,0.00016849,2]
[351540686,1738618251417,-500.0,0.00016849,2]
[351540687,1738618251426,-500.0,0.00016849,2]
[351540688,1738618251435,-1356.85,0.00016849,2]
[351540689,1738618251445,-500.0,0.00016849,2]
[351540690,1738618251454,-500.0,0.00016849,2]
[351540691,1738618251464,-500.0,0.00016849,2]
[351540692,1738618251473,-2165.76,0.00016849,2]
[351540693,1738618251483,-500.0,0.00016849,2]
[351540694,1738618251492,-916.05,0.00016849,2]
[351540695,1738618251501,-500.0,0.00016849,2]
[351540696,1738618251511,-509.56,0.00016849,2]
[351540697,1738618251521,-500.0,0.00016849,2]
[351540699,1738618251530,-555.36,0.00016849,2]
[351540700,1738618251539,-500.0,0.00016849,2]
[351540701,1738618251549,-1275.64,0.00016849,2]
[351540702,1738618251559,-500.0,0.00016849,2]
[351540703,1738618251568,-500.0,0.00016849,2]
[351540704,1738618251578,-500.0,0.00016849,2]
[351540705,1738618251587,-3488.56,0.00016849,2]
[351540706,1738618251596,-500.0,0.00016849,2]
[351540707,1738618251606,-2070.94,0.00016849,2]
[351540708,1738618251615,-500.0,0.00016849,2]
[351540709,1738618251624,-500.0,0.00016849,2]
[351540710,1738618251633,-500.0,0.00016849,2]
[351540711,1738618251643,-589.97,0.00016849,2]
[351540712,1738618251652,-500.0,0.00016849,2]
[351540713,1738618251661,-500.0,0.00016849,2]
[351540714,1738618251670,-500.0,0.00016849,2]
[351540715,1738618251679,-500.0,0.00016849,2]
[351540716,1738618251688,-751.44,0.00016849,2]
[351540717,1738618251697,-500.0,0.00016849,2]
[351540718,1738618251708,-782.12,0.00016849,2]
[351540719,1738618251718,-534.26,0.00016849,2]
[351540720,1738618251727,-1255.36,0.00016849,2]
[351540721,1738618251736,-593.00229171,0.00016849,2]
[351540722,1738618251746,-500.0,0.00016849,2]
[351540723,1738618251755,-1324.19,0.00016849,2]
[351540724,1738618251763,-694.39,0.00016849,2]
[351540725,1738618251774,-5855.21,0.00016849,2]
[351540726,1738618251785,-500.0,0.00016849,2]
[351540727,1738618251795,-737.36,0.00016849,2]
[351540728,1738618251805,-521.86,0.00016849,2]
[351540729,1738618251814,-500.0,0.00016849,2]
[351540730,1738618251823,-500.0,0.00016849,2]
[351540731,1738618251832,-500.0,0.00016849,2]
[351540732,1738618251842,-724.96,0.00016849,2]
[351540733,1738618251853,-500.0,0.00016849,2]
[351540734,1738618251862,-468.6960252,0.00016849,2]
[351540735,1738618251872,-500.0,0.00016849,2]
[351540736,1738618251881,-14669.9,0.00016849,2]
[351540737,1738618251891,-500.0,0.00016849,2]
[351540738,1738618251900,-500.0,0.00016849,2]
[351540739,1738618251909,-500.0,0.00016849,2]
[351540740,1738618251918,-500.0,0.00016849,2]
[351540742,1738618251928,-500.0,0.00016849,2]
[351540743,1738618251937,-288.13931863,0.00016849,2]
[351540744,1738618251946,-500.0,0.0001698,2]
[351540745,1738618251956,-151.0,0.00016986,2]
[351540746,1738618251965,-151.0,0.00016986,2]
[351540747,1738618251975,-151.0,0.00016986,2]
[351540748,1738618251984,-151.0,0.00016986,2]
[351540749,1738618251993,-432.404117,0.00016986,2]
[351540750,1738618252003,-432.404117,0.00016986,2]
[351540751,1738618252012,-177.53701,0.00016986,2]
[351540752,1738618252023,-177.53701,0.00016986,2]
[351540754,1738618252032,-151.0,0.00016986,2]
[351540755,1738618252041,-500.0,0.00016986,2]
[351540756,1738618252051,-232.529977,0.00016986,2]
[351540757,1738618252060,-232.529977,0.00016986,2]
[351540758,1738618252070,-518.62,0.00016986,2]
[351540759,1738618252080,-187.80413375,0.00016986,2]
[351540760,1738618252089,-253.06339582,0.00016986,2]
[351540761,1738618252098,-500.0,0.00016986,2]
[351540762,1738618252108,-500.0,0.00016986,2]
[351540763,1738618252117,-285.37907426,0.00016986,2]
[351540764,1738618252127,-535.1,0.00016986,2]
[351540765,1738618252137,-500.0,0.00016986,2]
[351540766,1738618252147,-500.0,0.00016986,2]
[351540767,1738618252156,-284.01972344,0.00016986,2]
[351540768,1738618252166,-500.0,0.00016986,2]
[351540769,1738618252175,-292.45228727,0.00016986,2]
[351540770,1738618252184,-500.0,0.00016986,2]
[351540771,1738618252194,-500.0,0.00016986,2]
[351540772,1738618252204,-500.0,0.00016986,2]
[351540773,1738618252215,-463.73970139,0.00016986,2]
[351540774,1738618252225,-500.0,0.00016986,2]
[351540775,1738618252234,-500.0,0.00016986,2]
[351540776,1738618252243,-500.0,0.00016986,2]
[351540777,1738618252252,-500.0,0.00016986,2]
[351540778,1738618252262,-505.61027765,0.00016986,2]
[351540779,1738618252271,-1000.49,0.00016986,2]
[351540780,1738618252281,-300.06274392,0.00016986,2]
[351540781,1738618252290,-500.0,0.00016986,2]
[351540782,1738618252299,-500.0,0.00016986,2]
[351540783,1738618252309,-500.0,0.00016986,2]
[351540784,1738618252318,-651.22,0.00016986,2]
[351540785,1738618252328,-500.0,0.00016986,2]
[351540786,1738618252337,-629.78,0.00016986,2]
[351540787,1738618252347,-500.0,0.00016986,2]
[351540788,1738618252356,-300.90764589,0.00016986,2]
[351540789,1738618252365,-394.44286205,0.00016986,2]
[351540790,1738618252375,-5746.53,0.00016986,2]
[351540791,1738618252385,-853.59,0.00016986,2]
[351540792,1738618252394,-500.0,0.00016986,2]
[351540793,1738618252404,-500.0,0.00016986,2]
[351540794,1738618252413,-500.0,0.00016986,2]
[351540795,1738618252423,-752.62,0.00016986,2]
[351540796,1738618252433,-609.53,0.00016986,2]
[351540797,1738618252442,-1242.33,0.00016986,2]
[351540798,1738618252452,-3233.63,0.00016986,2]
[351540799,1738618252466,-770.39,0.00016986,2]
[351540800,1738618252476,-781.57,0.00016986,2]
[351540801,1738618252487,-416.68859411,0.00016986,2]
[351540802,1738618252499,-500.0,0.00016986,2]
[351540803,1738618252509,-500.0,0.00016986,2]
[351540804,1738618252519,-500.0,0.00016986,2]
[351540805,1738618252529,-500.0,0.00016986,2]
[351540806,1738618252539,-641.32,0.00016986,2]
[351540807,1738618252549,-1543.09,0.00016986,2]
[351540808,1738618252559,-500.0,0.00016986,2]
[351540809,1738618252569,-1356.85,0.00016986,2]
[351540810,1738618252579,-500.0,0.00016986,2]
[351540811,1738618252588,-500.0,0.00016986,2]
[351540812,1738618252598,-2165.76,0.00016986,2]
[351540813,1738618252607,-500.0,0.00016986,2]
[351540814,1738618252617,-916.05,0.00016986,2]
[351540815,1738618252627,-500.0,0.00016986,2]
[351540816,1738618252636,-509.56,0.00016986,2]
[351540817,1738618252646,-500.0,0.00016986,2]
[351540818,1738618252656,-555.36,0.00016986,2]
[351540819,1738618252666,-500.0,0.00016986,2]
[351540820,1738618252675,-1275.64,0.00016986,2]
[351540821,1738618252685,-500.0,0.00016986,2]
[351540822,1738618252694,-409.28737023,0.00016986,2]
[351540823,1738618252704,-500.0,0.00016986,2]
[351540824,1738618252718,-3488.56,0.00016986,2]
[351540825,1738618252727,-500.0,0.00016986,2]
[351540827,1738618252736,-2070.94,0.00016986,2]
[351540828,1738618252745,-500.0,0.00016986,2]
[351540829,1738618252755,-500.0,0.00016986,2]
[351540830,1738618252763,-427.50203581,0.00016986,2]
[351540831,1738618252774,-500.0,0.00016986,2]
[351540832,1738618252789,-524.96188372,0.00016986,2]
[351540833,1738618252798,-480.44432716,0.00016986,2]
[351540834,1738618252808,-526.90165557,0.00016986,2]
[351540835,1738618252821,-751.44,0.00016986,2]
[351540836,1738618252831,-500.0,0.00016986,2]
[351540837,1738618252840,-782.12,0.00016986,2]
[351540838,1738618252850,-534.26,0.00016986,2]
[351540839,1738618252860,-1255.36,0.00016986,2]
[351540840,1738618252869,-338.78666467,0.00016986,2]
[351540841,1738618252879,-1324.19,0.00016986,2]
[351540842,1738618252888,-694.39,0.00016986,2]
[351540843,1738618252898,-5855.21,0.00016986,2]
[351540844,1738618252908,-500.0,0.00016986,2]
[351540845,1738618252918,-737.36,0.00016986,2]
[351540846,1738618252927,-521.86,0.00016986,2]
[351540847,1738618252938,-500.0,0.00016986,2]
[351540848,1738618252947,-500.0,0.00016986,2]
[351540849,1738618252959,-500.0,0.00016986,2]
[351540850,1738618252968,-724.96,0.00016986,2]
[351540851,1738618252978,-500.0,0.00016986,2]
[351540852,1738618252988,-14669.9,0.00016986,2]
[351540853,1738618252998,-500.0,0.00016986,2]
[351540854,1738618253007,-500.0,0.00016986,2]
[351540855,1738618253016,-500.0,0.00016986,2]
[351540856,1738618253026,-500.0,0.00016986,2]
[351540857,1738618253036,-153.51507434,0.00017014,2]
[351540858,1738618253046,-153.51507434,0.00017014,2]
[351540859,1738618253055,-153.0,0.0001706,2]
[351540860,1738618253065,-153.0,0.0001706,2]
[351540861,1738618253075,-153.0,0.0001706,2]
[351540862,1738618253085,-153.0,0.0001706,2]
[351540863,1738618253095,-153.0,0.0001706,2]
[351540864,1738618253104,-153.0,0.0001706,2]
[351540865,1738618253114,-153.0,0.0001706,2]
[351540866,1738618253124,-153.0,0.0001706,2]
[351540867,1738618253134,-153.0,0.0001706,2]
[351540868,1738618253143,-153.0,0.0001706,2]
[351540869,1738618253152,-153.0,0.0001706,2]
[351540870,1738618253161,-153.0,0.0001706,2]
[351540871,1738618253171,-153.0,0.0001706,2]
[351540872,1738618253180,-153.0,0.0001706,2]
[351540873,1738618253189,-153.0,0.0001706,2]
[351540874,1738618253199,-153.0,0.0001706,2]
[351540875,1738618253211,-153.0,0.0001706,2]
[351540876,1738618253221,-153.0,0.0001706,2]
[351540877,1738618253230,-153.0,0.0001706,2]
[351540878,1738618253240,-153.0,0.0001706,2]
[351540879,1738618253249,-153.0,0.0001706,2]
[351540880,1738618253259,-153.0,0.0001706,2]
[351540881,1738618253268,-153.0,0.0001706,2]
[351540882,1738618253277,-600.0,0.00017068,2]
[351540883,1738618253287,-1000.0,0.00017121,2]
[351540884,1738618253296,-151.0,0.00017123,2]
[351540885,1738618253306,-163.708846,0.00017123,2]
[351540886,1738618253315,-177.53701,0.00017123,2]
[351540887,1738618253324,-177.53701,0.00017123,2]
[351540888,1738618253334,-151.0,0.00017123,2]
[351540889,1738618253343,-500.0,0.00017123,2]
[351540890,1738618253352,-232.529977,0.00017123,2]
[351540891,1738618253362,-232.529977,0.00017123,2]
[351540892,1738618253371,-500.0,0.00017123,2]
[351540893,1738618253380,-500.0,0.00017123,2]
[351540894,1738618253389,-500.0,0.00017123,2]
[351540895,1738618253398,-500.0,0.00017123,2]
[351540896,1738618253407,-500.0,0.00017123,2]
[351540897,1738618253416,-500.0,0.00017123,2]
[351540898,1738618253426,-500.0,0.00017123,2]
[351540899,1738618253435,-500.0,0.00017123,2]
[351540900,1738618253444,-500.0,0.00017123,2]
[351540901,1738618253453,-500.0,0.00017123,2]
[351540902,1738618253464,-500.0,0.00017123,2]
[351540903,1738618253473,-1000.49,0.00017123,2]
[351540904,1738618253482,-571.30216883,0.00017123,2]
[351540905,1738618253491,-500.0,0.00017123,2]
[351540906,1738618253501,-651.22,0.00017123,2]
[351540907,1738618253510,-500.0,0.00017123,2]
[351540908,1738618253519,-629.78,0.00017123,2]
[351540909,1738618253528,-579.86,0.00017123,2]
[351540910,1738618253537,-5746.53,0.00017123,2]
[351540911,1738618253546,-853.59,0.00017123,2]
[351540912,1738618253555,-500.0,0.00017123,2]
[351540913,1738618253565,-752.62,0.00017123,2]
[351540914,1738618253575,-609.53,0.00017123,2]
[351540915,1738618253584,-1242.33,0.00017123,2]
[351540916,1738618253594,-3233.63,0.00017123,2]
[351540917,1738618253603,-770.39,0.00017123,2]
[351540918,1738618253612,-781.57,0.00017123,2]
[351540919,1738618253622,-500.0,0.00017123,2]
[351540920,1738618253631,-500.0,0.00017123,2]
[351540921,1738618253640,-500.0,0.00017123,2]
[351540922,1738618253649,-641.32,0.00017123,2]
[351540923,1738618253659,-1543.09,0.00017123,2]
[351540924,1738618253668,-1356.85,0.00017123,2]
[351540925,1738618253677,-500.0,0.00017123,2]
[351540926,1738618253687,-500.0,0.00017123,2]
[351540927,1738618253697,-2165.76,0.00017123,2]
[351540928,1738618253708,-500.0,0.00017123,2]
[351540929,1738618253717,-916.05,0.00017123,2]
[351540930,1738618253727,-509.56,0.00017123,2]
[351540931,1738618253737,-500.0,0.00017123,2]
[351540932,1738618253840,-555.36,0.00017123,2]
[351540933,1738618253852,-337.96514729,0.00017123,2]
[351540934,1738618254010,-937.67485271,0.00017123,2]
[351540935,1738618254020,-500.0,0.00017123,2]
[351540936,1738618254030,-500.0,0.00017123,2]
[351540937,1738618254039,-3488.56,0.00017123,2]
[351540938,1738618254050,-500.0,0.00017123,2]
[351540939,1738618254059,-2070.94,0.00017123,2]
[351540940,1738618254069,-500.0,0.00017123,2]
[351540941,1738618254078,-751.44,0.00017123,2]
[351540942,1738618254087,-782.12,0.00017123,2]
[351540943,1738618254096,-534.26,0.00017123,2]
[351540944,1738618254105,-1255.36,0.00017123,2]
[351540945,1738618254115,-1324.19,0.00017123,2]
[351540946,1738618254124,-694.39,0.00017123,2]
[351540947,1738618254133,-5600.86435256,0.00017123,2]
[351540948,1738618254145,-254.34564744,0.00017123,2]
[351540949,1738618254155,-500.0,0.00017123,2]
[351540950,1738618254164,-737.36,0.00017123,2]
[351540951,1738618254173,-521.86,0.00017123,2]
[351540952,1738618254183,-500.0,0.00017123,2]
[351540953,1738618254192,-500.0,0.00017123,2]
[351540954,1738618254201,-500.0,0.00017123,2]